Cogmind - Beta 11 X11 @@@ ROGUE MODE // 2022.03.12 @ 21:22:14 Player: leiavoia Result: Escaped! Performance ------------- Evolutions (9) 4500 Regions Visited (25) 5000 Robots Destroyed (250) 1250 Value Destroyed (10553) 10553 Prototype IDs (67) 1340 Alien Tech Used (1) 200 Bonus (8017) 8017 TOTAL SCORE: 30860 Bonus ------- High Alert Combat Kills 1859 Follower Combat Kills 1876 Network Hubs Disabled 200 Aligned with FarCom 300 Met Data Miner 300 Met Zhirov 300 Built Enhanced Grunts 300 Met R17 at Cetus 500 Met R17 at Research 2000 Win 3000 Friendly Fire -2618 Cogmind --------- Core Integrity 1578/1600 Matter 214/300 Energy 571/590 System Corruption 2% Temperature Cool (9) Movement Treading (152) Location To Epsilon Eridani Parts ------- > --- POWER (2) -------- Particle Reactor Quantum Reactor > --- PROPULSION (6) --- Medium Treads Heavy Treads Biometal Medium Treads Biometal Heavy Treads > --- UTILITY (11) ----- Advanced Heat Sink High-capacity Storage Unit Enhanced Optical Array Long-range Terrain Scanner Experimental Terrain Scan Processor Improved Targeting Computer Improved Targeting Computer Advanced Targeting Computer Advanced Targeting Computer Advanced Transmission Jammer Long-range Tractor Beam > --- WEAPON (6) ------- Enhanced Nova Cannon Advanced KE Penetrator Helical Railgun Helical Railgun Helical Railgun Helical Railgun > --- INVENTORY (20) --- Biometal Heavy Treads Advanced Heat Sink Medium Matter Pod (100) Experimental Terrain Scan Processor Matter Filter Centrium Medium Armor Plating Centrium Medium Armor Plating Centrium Medium Armor Plating Transdimensional Reconstructor Enhanced Quantum Rifle Matter Neutralizer Railgun Advanced KE Penetrator Gamma Bomb Array Gamma Bomb Array Gamma Bomb Array Gamma Bomb Array Peak State ------------ > --- POWER ------------ Particle Reactor Quantum Reactor > --- PROPULSION ------- Medium Treads Heavy Treads Biometal Medium Treads Biometal Heavy Treads > --- UTILITY ---------- Advanced Heat Sink High-capacity Storage Unit Enhanced Optical Array Long-range Terrain Scanner Experimental Terrain Scan Processor Improved Targeting Computer Improved Targeting Computer Advanced Targeting Computer Centrium Medium Armor Plating Centrium Medium Armor Plating Centrium Medium Armor Plating > --- WEAPON ----------- Matter Neutralizer Advanced KE Penetrator Advanced KE Penetrator Helical Railgun Helical Railgun Helical Railgun > --- INVENTORY -------- Advanced Heat Sink Medium Matter Pod Experimental Terrain Scan Processor Advanced Targeting Computer Matter Filter Transdimensional Reconstructor Enhanced Nova Cannon Railgun Helical Railgun Gamma Bomb Array Gamma Bomb Array Gamma Bomb Array Gamma Bomb Array [Rating: 178] Favorites ----------- Power Quantum Reactor Engine Cooled Deuterium Engine Power Core Micro Nuclear Core Reactor Quantum Reactor Propulsion Improved Heavy Treads Treads Improved Heavy Treads Leg Aluminum Leg Wheel Compact Wheel Hover Unit Airjet Flight Unit VTOL Module Utility Advanced Targeting Computer Device Advanced Heat Sink Storage Large Storage Unit Processor Advanced Targeting Computer Hackware Makeshift System Shield Protection Centrium Medium Armor Plating Weapon Antimatter Cannon Energy Gun Medium Laser Energy Cannon Matter Neutralizer Ballistic Gun Advanced KE Penetrator Ballistic Cannon Antimatter Cannon Launcher Heavy Missile Launcher Slashing Weapon Katana Piercing Weapon Lance Build | -11 -10 -9 -9 -9 -8 -8 -7 -7 -7 -7 -6 -6 -5 -5 -5 -5 -4 -4 -4 -4 -4 -4 -3 -2 -1 ------- Run | Scr Mat Mat Min Exi Min Mat Fac Low Low Dat Pro Fac Fac Upp Upp Zhi Pro Fac Ext Cet Arc Hub Res Res Acc Slots Evolved 18 | . . 2 . . . 2 2 . . . . 2 2 . . . . 2 . . . . 2 2 2 Power 1 | . . . . . . . . . . . . . 1 . . . . . . . . . . . . Propulsion 4 | . . 1 . . . 1 1 . . . . 1 . . . . . . . . . . . . . Utility 9 | . . 1 . . . 1 1 . . . . 1 . . . . . 1 . . . . 2 1 1 Weapon 4 | . . . . . . . . . . . . . 1 . . . . 1 . . . . . 1 1 Parts Attached 275 | 1 9 44 5 1 . 6 12 4 1 1 2 24 5 7 9 6 11 29 22 7 12 5 15 22 15 Power 29 | . 3 5 1 . . . 3 . . . . 1 1 . 1 1 . 3 5 2 . . 2 . 1 Engine 15 | . 3 5 1 . . . 3 . . . . . . . 1 . . 2 . . . . . . . Core 3 | . . . . . . . . . . . . 1 1 . . . . . 1 . . . . . . Reactor 11 | . . . . . . . . . . . . . . . . 1 . 1 4 2 . . 2 . 1 Propulsion 68 | . 4 19 1 . . 2 3 2 . . . 11 . 1 6 . 2 10 . 1 1 . 1 4 . Treads 16 | . . 3 . . . . . . . . . . . . 2 . 1 3 . 1 1 . 1 4 . Leg 25 | . 4 13 . . . . . . . . . 2 . 1 2 . 1 2 . . . . . . . Wheel 11 | . . . . . . . . . . . . 6 . . . . . 5 . . . . . . . Hover 14 | . . 3 1 . . 2 3 2 . . . 3 . . . . . . . . . . . . . Flight 2 | . . . . . . . . . . . . . . . 2 . . . . . . . . . . Utility 102 | 1 2 9 1 . . 2 5 1 1 . . 4 . 1 2 5 6 10 9 2 10 5 8 10 8 Device 50 | 1 1 5 1 . . 2 . . 1 . . . . 1 1 3 2 6 6 . 6 . 2 7 5 Storage 8 | . 1 1 . . . . 3 . . . . . . . . 1 . 1 . . . . 1 . . Processor 13 | . . 1 . . . . 2 . . . . 2 . . . . . . 1 . 1 . 4 . 2 Hackware 6 | . . . . . . . . . . . . . . . . . . 2 1 . 1 2 . . . Protection 25 | . . 2 . . . . . 1 . . . 2 . . 1 1 4 1 1 2 2 3 1 3 1 Artifact . | . . . . . . . . . . . . . . . . . . . . . . . . . . Weapon 76 | . . 11 2 1 . 2 1 1 . 1 2 8 4 5 . . 3 6 8 2 1 . 4 8 6 Energy Gun 14 | . . 5 2 1 . . . 1 . 1 . . 1 . . . . 1 2 . . . . . . Energy Cannon 11 | . . 1 . . . 1 . . . . . 1 . . . . 1 . . 1 . . 1 3 2 Ballistic Gun 17 | . . 2 . . . . . . . . . 4 . . . . . . . . . . 3 5 3 Ballistic Cannon 17 | . . . . . . . 1 . . . 1 . 1 2 . . 2 3 6 1 . . . . . Launcher 5 | . . . . . . . . . . . . 2 1 1 . . . . . . . . . . 1 Special Weapon . | . . . . . . . . . . . . . . . . . . . . . . . . . . Impact Weapon . | . . . . . . . . . . . . . . . . . . . . . . . . . . Slashing Weapon 11 | . . 3 . . . 1 . . . . 1 1 1 2 . . . 1 . . 1 . . . . Piercing Weapon 1 | . . . . . . . . . . . . . . . . . . 1 . . . . . . . Special Melee Weapon . | . . . . . . . . . . . . . . . . . . . . . . . . . . Unidentified Prototypes 16 | . . 1 . . . . 1 . . . . 1 1 . . 5 . 2 . 2 . . 2 1 . Parts Lost 59 | . 1 8 2 . . . . 1 . . 3 5 . 4 1 . 4 15 3 1 . 6 . 5 . Power 10 | . 1 2 . . . . . . . . . 1 . . 1 . . 2 . . . 2 . 1 . Propulsion 24 | . . 3 1 . . . . 1 . . 2 3 . 4 . . 1 6 . . . 1 . 2 . Utility 12 | . . 2 . . . . . . . . . 1 . . . . 2 3 2 1 . . . 1 . Weapon 13 | . . 1 1 . . . . . . . 1 . . . . . 1 4 1 . . 3 . 1 . Highest Loss Streak 6 | . 1 3 2 . . . . 1 . . 2 2 . 2 1 . 2 5 2 1 . 6 . 4 . To Critical Strikes . | . . . . . . . . . . . . . . . . . . . . . . . . . . Average Slot Usage (%) 91 | . 99 99 98 95 88 87 100 99 100 94 86 87 91 88 94 100 99 89 83 84 81 81 84 87 91 Engine 4 | . 13 11 11 11 11 9 7 7 7 7 7 2 . . 1 5 5 7 . . . . . . . Core 2 | . . . . . . . . . . . . 3 8 11 8 2 . . 4 1 . . . . . Reactor 2 | . . . . . . . . . . . . . . . . 2 5 1 5 8 10 9 9 8 7 Treads 7 | . . 10 . . . . . . . . . . . . 7 11 10 4 15 15 15 14 14 15 16 Leg 6 | . 27 20 . . . . . . . . . 2 5 6 13 17 17 10 . . . . . . . Wheel 2 | . . . . . . . . . . . . 15 17 6 . . . 7 . . . . . . . Hover 8 | . . 2 32 33 33 28 38 38 38 38 25 10 11 11 7 5 5 . . . . . . . . Device 9 | . 14 17 11 11 11 18 13 4 3 7 7 . . 4 4 4 2 7 12 12 12 5 9 16 12 Storage 6 | . 14 11 11 11 11 9 7 7 7 7 7 6 5 5 5 5 5 5 5 5 5 5 4 4 4 Processor 15 | . . 2 11 11 11 9 16 23 23 23 23 25 23 23 23 23 19 13 13 10 10 10 10 17 23 Hackware 1 | . . . . . . . . . . . . . . . . . . 6 2 . . 11 4 1 . Protection 2 | . . . . . . . . 2 3 . . 3 5 . . . 6 2 1 7 5 2 11 2 4 Energy Gun 3 | . 28 9 17 17 11 5 . . 7 1 7 . 5 1 . . . . 2 . . . . . . Energy Cannon 1 | . . 8 1 . . 3 . . . . . . . . . . 3 3 . . . . 3 3 2 Ballistic Gun 2 | . . 1 . . . . . . . . . 3 . . . . . . . . . . 13 16 20 Ballistic Cannon 5 | . . . . . . . 6 6 . . . . . 3 5 5 9 10 14 21 16 13 . . . Slashing Weapon 2 | . . 1 2 . . 3 7 7 7 7 6 4 2 3 5 5 1 . . . 4 4 . . . Naked Turns . | . . . . . . . . . . . . . . . . . . . . . . . . . . Heaviest Build 141 | 13 18 26 24 26 26 27 40 43 41 38 42 43 54 54 73 61 94 83 106 116 114 107 132 141 132 Greatest Support 235 | 20 20 60 24 24 24 30 42 42 41 41 41 74 42 42 53 53 78 225 225 230 235 235 235 225 208 Greatest Overweight (x) 4 | . 1 1 . 1 1 1 . 1 . . 1 4 1 3 2 1 1 1 . . . . . . . Average Overweight (x) . | . . . . . 1 . . . . . . 1 1 2 . . 1 . . . . . . . . Largest Inventory Capacity 20 | 8 10 10 10 10 10 10 15 15 15 15 15 15 15 15 15 15 15 15 15 15 15 15 20 20 20 Average Capacity 14 | 8 9 10 10 10 10 10 10 15 15 15 15 15 15 15 15 15 15 15 15 15 15 15 19 20 20 Most Carried 20 | 7 10 10 10 10 10 10 14 15 15 15 15 15 15 15 15 15 15 15 15 15 15 15 19 20 20 Average Carried 13 | 6 8 9 9 9 10 9 10 14 15 15 14 14 14 14 14 14 14 13 14 14 14 14 9 19 18 Final Capacity 20 | 8 10 10 10 10 10 10 15 15 15 15 15 15 15 15 15 15 15 15 15 15 15 15 20 20 20 Final Carried 19 | 7 10 10 10 10 10 10 14 15 15 15 15 15 15 15 15 15 15 14 15 15 15 13 19 18 18 Class Distribution -------------------- 26% | Scavenger-Mutant 12% | Mutant 12% | Scavenger-Gunner 10% | Scavenger-Assassin 9% | Assassin 8% | Gunner 6% | Scavenger-Scout 6% | Scavenger-Skirmisher 3% | Scavenger-Executioner Dominant Class ---------------- Mutant | -10/Materials Scavenger-Mutant | -9/Materials Scavenger-Mutant | -9/Mines Scavenger-Mutant | -9/Exiles Mutant | -8/Mines Scavenger-Skirmisher | -8/Materials Scavenger-Scout | -7/Factory Scavenger-Scout | -7/Lower Caves Mutant | -7/Lower Caves Scavenger-Scout | -7/Data Miner Scavenger-Assassin | -6/Proximity Caves Scavenger-Mutant | -6/Factory Scavenger-Mutant | -5/Factory Assassin | -5/Upper Caves Scavenger-Assassin | -5/Upper Caves Scavenger-Assassin | -5/Zhirov Gunner | -4/Proximity Caves Assassin | -4/Factory Gunner | -4/Extension Scavenger-Gunner | -4/Cetus Scavenger-Gunner | -4/Archives Scavenger-Skirmisher | -4/Hub_04(d) Scavenger-Skirmisher | -3/Research Scavenger-Gunner | -2/Research Scavenger-Executioner | -1/Access Resources | -11 -10 -9 -9 -9 -8 -8 -7 -7 -7 -7 -6 -6 -5 -5 -5 -5 -4 -4 -4 -4 -4 -4 -3 -2 -1 ----------- Run | Scr Mat Mat Min Exi Min Mat Fac Low Low Dat Pro Fac Fac Upp Upp Zhi Pro Fac Ext Cet Arc Hub Res Res Acc Matter Collected 7855 | 210 90 373 95 . 10 . 97 104 11 . 93 462 175 170 321 30 480 973 1865 640 314 157 171 568 446 Remotely 287 | . . . . . . . . . . . . . . . . . . . . . . . . . 287 Salvage Created 12142 | 92 468 1048 255 . 60 . 93 29 . . 36 887 246 460 404 407 354 865 1812 1195 362 1029 . 1433 607 Parts 496 | 2 17 62 10 . 6 . 9 3 . . 3 36 7 15 4 5 10 45 58 54 28 40 . 58 24 Haulers Intercepted 11 | . 1 2 . . . . 1 . . . . 1 1 1 . . . . 1 . . 1 . 2 . Recyclers Shooed 6 | . . . . . . . . . . . . 2 . . . . . 1 . . . . . 1 2 Parts Field Recycled . | . . . . . . . . . . . . . . . . . . . . . . . . . . Retrieved Matter . | . . . . . . . . . . . . . . . . . . . . . . . . . . Parts Self-Destructed 29 | . . . . . . . . 5 . . 3 . . 8 . 4 9 . . . . . . . . Prevented 3 | . . . . . . . . 3 . . . . . . . . . . . . . . . . . Kills | -11 -10 -9 -9 -9 -8 -8 -7 -7 -7 -7 -6 -6 -5 -5 -5 -5 -4 -4 -4 -4 -4 -4 -3 -2 -1 ------- Run | Scr Mat Mat Min Exi Min Mat Fac Low Low Dat Pro Fac Fac Upp Upp Zhi Pro Fac Ext Cet Arc Hub Res Res Acc Combat Hostiles Destroyed 170 | . 9 21 4 . 4 . 1 2 . . 1 7 4 12 2 . 14 27 18 14 2 6 . 17 5 Melee 1 | . . . . . . . . . . . . . . . . . . . 1 . . . . . . Guns 58 | . 8 14 2 . 4 . . . . . 1 4 3 2 . . . . . . . . . 15 5 Cannons 84 | . . 7 2 . . . 1 1 . . . . . . 1 . 9 25 17 14 2 3 . 2 . AOE 24 | . . . . . . . . 1 . . . 3 1 10 1 . 5 2 . . . 1 . . . Classes Destroyed 19 | 2 5 4 . . . . 2 1 . . . . 1 . 1 . . 2 1 . . . . . . Worker 18 | . 1 1 . . . . . . . . . 3 . . . . . 6 . . . 6 . 1 . Builder 10 | . . . . . . . 1 . . . . 1 . . . . . 2 . . . 4 . 1 1 Tunneler 3 | 1 . . . . . . . . . . . . . . . . . . 1 . . 1 . . . Hauler 11 | . 1 2 . . . . 1 . . . . 1 1 1 . . . . 1 . . 1 . 2 . Recycler 14 | 1 1 . 1 . . . . . . . . 4 . . . . . . 3 . . 2 . . 2 Minesweeper 1 | . . . . . . . . 1 . . . . . . . . . . . . . . . . . Mechanic 1 | . . 1 . . . . . . . . . . . . . . . . . . . . . . . Operator 12 | . . 3 . . . . . . . . . . . . . . . . 2 . 7 . . . . Watcher 3 | . 1 1 . . . . . . . . . . . . . . . . . . . . . 1 . Swarmer 40 | . 3 3 4 . 4 . . 2 . . . 4 . . . . 4 10 1 . . . . 5 . Grunt 63 | . 6 12 . . . . . . . . . 2 3 10 . . 3 9 10 2 . 3 . 3 . Brawler 3 | . . . . . . . . . . . . . . . . . . 1 2 . . . . . . Duelist 4 | . . 1 . . . . . . . . . . . 2 . . . 1 . . . . . . . Protector 1 | . . . . . . . . . . . . . . . . . . 1 . . . . . . . Sentry 14 | . . 5 . . . . . . . . . . . . . . 1 1 2 . 2 1 . 2 . Demolisher 1 | . . . . . . . . . . . . . . . . . . . 1 . . . . . . Hunter 20 | . . . . . . . . . . . . . 1 . 2 . 6 . 1 3 . 2 . 5 . Programmer 17 | . . . . . . . 1 . . . 1 1 . . . . . 4 1 2 . . . 2 5 Cetus Guard 7 | . . . . . . . . . . . . . . . . . . . . 7 . . . . . Enhanced Grunt 3 | . . . . . . . . . . . . . . . . . . . . 2 . 1 . . . Packrat 2 | . . . . . . . . . . . . . . . 2 . . . . . . . . . . Samaritan 1 | . . . . . . . . . . . . . . . 1 . . . . . . . . . . Thug 2 | . . . . . . . . . . . . . . . . . . . 1 1 . . . . . Butcher 1 | . . . . . . . . . . . . . . . . . . . 1 . . . . . . Best Kill Streak 18 | 2 4 8 4 . 4 . 1 2 . . 1 4 4 6 2 . 4 9 5 4 4 18 . 5 3 Combat Bots Only 6 | . 3 6 4 . 4 . 1 1 . . 1 3 3 5 2 . 4 5 4 4 2 4 . 4 2 Max Kills in Single Turn 14 | 1 2 2 1 . 1 . 1 1 . . 1 3 1 2 1 . 2 4 2 2 2 14 . 2 1 Gunslinging 1 | . 1 . . . . . . . . . . . . . . . . . . . . . . . . Exploded 3 | . . . . . . . . 1 . . . 3 1 2 1 . 2 1 . . . 1 . . . Melee 1 | . . . . . . . . . . . . . . . . . . . 1 . . . . . . Uniques/NPCs Destroyed 1 | . . . 1 . . . . . . . . . . . . . . . . . . . . . . YI-UF0 (-9/Mines) Combat | -11 -10 -9 -9 -9 -8 -8 -7 -7 -7 -7 -6 -6 -5 -5 -5 -5 -4 -4 -4 -4 -4 -4 -3 -2 -1 -------- Run | Scr Mat Mat Min Exi Min Mat Fac Low Low Dat Pro Fac Fac Upp Upp Zhi Pro Fac Ext Cet Arc Hub Res Res Acc Damage Taken 15284 | . 387 1310 130 . 26 15 103 367 . . 124 534 323 398 236 . 1796 3115 1311 246 80 2090 60 2327 306 Core 1539 | . 107 236 22 . . 15 11 . . . . 65 18 33 27 . 168 302 310 . . 100 . 103 22 Absorbed by Shields 1781 | . . . . . . . . . . . . . . . . . . 341 745 192 . . . 503 . Reduced by Siege Mode 144 | . . . . . . . . . . . . . . . . . . 18 31 9 . . . 80 6 Core Remaining (%) 80 | 100 57 . . . 35 97 . . . . 98 92 . . . . 75 . . . . 38 100 92 98 Volleys Fired 500 | 4 47 71 24 . . 2 8 12 . . 3 35 4 13 10 . 35 53 54 20 7 6 7 57 28 Largest 6 | 2 2 2 2 . . 1 1 1 . . 2 2 1 2 2 . 3 3 4 4 4 3 4 5 6 Hottest 304 | 100 100 125 121 . . 60 48 48 . . 117 50 39 79 79 . 165 165 258 236 236 175 210 251 304 Shots Fired 1239 | 8 94 132 45 . 8 2 8 11 1 . 5 54 13 39 16 . 84 135 176 69 26 18 10 199 86 Gun 567 | 8 94 84 42 . 8 . . . 1 . 3 53 9 21 . . . 2 5 . . . 3 164 70 Cannon 637 | . . 48 3 . . 2 8 11 . . 2 . . 5 10 . 77 133 171 69 26 18 7 35 12 Launcher 35 | . . . . . . . . . . . . 1 4 13 6 . 7 . . . . . . . 4 Special . | . . . . . . . . . . . . . . . . . . . . . . . . . . Kinetic 806 | . . 22 . . . . 8 11 . . 2 53 . 5 10 . 65 111 171 67 26 18 3 164 70 Thermal 398 | 8 94 110 45 . 8 2 . . 1 . 3 . 9 21 . . 12 24 5 2 . . 7 35 12 Explosive 31 | . . . . . . . . . . . . 1 4 13 6 . 7 . . . . . . . . Electromagnetic 4 | . . . . . . . . . . . . . . . . . . . . . . . . . 4 Robot Hit Streak 26 | 2 9 11 5 . 5 . 3 5 . . 7 15 14 23 4 . 10 17 23 9 3 3 1 26 25 Robot Miss Streak 6 | 1 3 3 3 . 4 2 . 2 . . 1 2 . 2 1 . 4 2 6 3 2 2 3 3 1 Penetration Max 2 | . . . . . . . . . . . . . . . . . . . 2 1 . 1 . 1 1 Secondary Targets 4 | . 1 1 . . . . . . . . . 1 . . . . . . . . . . . . 1 Max Gunslinging Chain 1 | . 1 1 . . . . . . . . . 1 . . . . . . . . . . . . 1 Autonomous 39 | . . . . . 8 . . . . . . . 9 22 . . . . . . . . . . . Shots Hit Robots 826 | 5 61 84 26 . 5 . 8 8 . . 4 44 13 30 15 11 51 85 138 33 23 8 1 124 49 Core Hits 427 | 3 22 41 10 . 4 . 2 3 . . 2 24 15 34 6 2 28 52 52 24 10 24 1 52 16 Critical Kills 49 | . . . . . . . . . . . . . . . . . . . 17 17 3 4 . 6 2 Critical Parts Destroyed 76 | . . . . . . . . . . . . . . . . . . . 44 16 2 2 . 8 4 Critical Strikes 187 | 2 8 4 2 . . . . 1 . . 1 . . 1 2 . 4 6 84 35 8 6 . 17 6 Burn 18 | 2 8 4 2 . . . . . . . 1 . . . . . . . 1 . . . . . . Destroy 153 | . . . . . . . . . . . . . . . . . . . 81 35 8 6 . 17 6 Blast 15 | . . . . . . . . 1 . . . . . 1 2 . 4 6 1 . . . . . . Impale 1 | . . . . . . . . . . . . . . . . . . . 1 . . . . . . Melee Attacks 142 | . . 8 . . . 4 32 6 4 . 3 18 2 3 6 11 . 26 10 . 6 3 . . . Impact . | . . . . . . . . . . . . . . . . . . . . . . . . . . Slashing 111 | . . 8 . . . 4 32 6 4 . 3 18 2 3 6 11 . 5 . . 6 3 . . . Piercing 31 | . . . . . . . . . . . . . . . . . . 21 10 . . . . . . Sneak Attacks 23 | . . . . . . . 2 . . . . 5 1 . 2 . . 3 4 . 6 . . . . Combat Hostiles . | . . . . . . . . . . . . . . . . . . . . . . . . . . Follow-up Attacks . | . . . . . . . . . . . . . . . . . . . . . . . . . . Damage Inflicted 29311 | 62 797 1271 400 . 169 . 391 205 . . 117 1455 1064 2057 1053 1072 2110 4492 3066 891 1181 2233 23 3499 1703 Guns 8440 | 62 797 711 365 . 169 . . . . . 50 759 260 562 . . . . 90 . . . 23 2952 1640 Cannons 10116 | . . 558 35 . . . 90 205 . . 67 . . 106 200 . 1475 3055 2372 891 310 160 . 547 45 Explosions 6504 | . . . . . . . . . . . . 186 721 1389 405 . 635 1081 . . . 2069 . . 18 Melee 4216 | . . . . . . . 301 . . . . 510 83 . 448 1072 . 327 604 . 871 . . . . Ramming 35 | . . 2 . . . . . . . . . . . . . . . 29 . . . 4 . . . Kinetic 13686 | . . 98 . . . . 90 205 . . 67 759 . 106 200 . 1169 2644 2372 891 310 160 23 2952 1640 Thermal 4870 | 62 797 1171 400 . 169 . . . . . 50 . 260 562 . . 306 411 90 . . . . 547 45 Explosive 4417 | . . . . . . . . . . . . 186 721 1389 405 . 635 1081 . . . . . . . Electromagnetic 2087 | . . . . . . . . . . . . . . . . . . . . . . 2069 . . 18 Impact . | . . . . . . . . . . . . . . . . . . . . . . . . . . Slashing 3479 | . . . . . . . 301 . . . . 510 83 . 448 1072 . 194 . . 871 . . . . Piercing 737 | . . . . . . . . . . . . . . . . . . 133 604 . . . . . . Highest Corruption 18 | . . . . . . . 1 1 1 1 1 2 . . . . . 9 16 12 12 18 1 . 2 Average Corruption 5 | . . . . . . . 1 1 1 1 1 1 . . . . . 5 11 11 8 7 1 . 1 Corruption Purged 17 | . . . . . . . . . . . . . . . . . . . 5 . 12 . . . . Corruption Blocked . | . . . . . . . . . . . . . . . . . . . . . . . . . . Effects 116 | . . . . . . . 3 3 1 . 3 4 . . . . . 17 56 19 5 2 2 . 1 Message Errors 33 | . . . . . . . . . . . 1 2 . . . . . 4 14 8 2 1 . . 1 Matter Fused 27 | . . . . . . . 1 1 . . 1 1 . . . . . 5 15 2 . . 1 . . Heat Flow Errors 8 | . . . . . . . . . . . 1 . . . . . . . 3 2 1 . 1 . . Energy Discharges 13 | . . . . . . . 2 . . . . 1 . . . . . 4 5 . 1 . . . . Parts Rejected 1 | . . . . . . . . 1 . . . . . . . . . . . . . . . . . Data Loss (minor) 12 | . . . . . . . . . . . . . . . . . . 3 5 3 1 . . . . Data Loss (major) 3 | . . . . . . . . . . . . . . . . . . . 3 . . . . . . Misfires 5 | . . . . . . . . . 1 . . . . . . . . . 4 . . . . . . Alerts 3 | . . . . . . . . . . . . . . . . . . 1 2 . . . . . . Misdirections 1 | . . . . . . . . . . . . . . . . . . . . . . 1 . . . Weapon Failures 10 | . . . . . . . . 1 . . . . . . . . . . 5 4 . . . . . Overload Shots . | . . . . . . . . . . . . . . . . . . . . . . . . . . Overflow Damage 2057 | . . . . . . . 77 . . . . 147 5 29 323 369 88 272 229 . 272 231 . . 15 Projectiles 139 | . . . . . . . . . . . . . . . . . 40 84 . . . . . . 15 Explosions 488 | . . . . . . . . . . . . . 5 29 46 . 48 129 . . . 231 . . . Melee 1430 | . . . . . . . 77 . . . . 147 . . 277 369 . 59 229 . 272 . . . . Knockbacks 57 | . . . . . . . . 1 . . . . . 1 2 . 12 20 15 4 1 1 . . . Impact . | . . . . . . . . . . . . . . . . . . . . . . . . . . Kinetic 50 | . . . . . . . . 1 . . . . . 1 2 . 11 14 15 4 1 1 . . . Secondary 7 | . . . . . . . . . . . . . . . . . 1 6 . . . . . . . Self-Inflicted Damage 777 | . . . . . . . . . . . . . . 27 . . 117 535 . . . 98 . . . Shots 14 | . . . . . . . . . . . . . . 1 . . 5 7 . . . 1 . . . Rammed 4 | . . 2 . . . . . . . . . . . . . . . 1 . . . 1 . . . Targets Rammed 11 | . . 3 . . . . . . . . . . . . . . . 7 . . . 1 . . . Kicked 6 | . . . . . . . . . . . . . . . . . . 6 . . . . . . . Crushed 1 | . . 1 . . . . . . . . . . . . . . . . . . . . . . . Highest Temperature 644 | 156 315 54 192 . . . . 21 36 . 167 56 33 78 6 . 434 272 644 449 498 192 243 346 164 Average Temperature 111 | 74 98 14 71 . . . . 7 20 . 67 40 18 37 3 . 158 91 187 164 205 75 57 84 44 Received Heat Transfer 2185 | . 204 576 . . . . 24 63 . . . 108 48 144 . . 177 422 81 8 . 222 . 108 . Effects 48 | . . . . . . . . . . . . . . . . . 8 . 24 11 3 . . 2 . Shutdowns 16 | . . . . . . . . . . . . . . . . . 6 . 6 2 1 . . 1 . Energy Bleed 5 | . . . . . . . . . . . . . . . . . . . 3 . 1 . . 1 . Interference 18 | . . . . . . . . . . . . . . . . . 2 . 10 5 1 . . . . Matter Decay 1 | . . . . . . . . . . . . . . . . . . . 1 . . . . . . Short Circuit 1 | . . . . . . . . . . . . . . . . . . . 1 . . . . . . Damage (minor) 3 | . . . . . . . . . . . . . . . . . . . 2 1 . . . . . Damage (major) 3 | . . . . . . . . . . . . . . . . . . . . 3 . . . . . Damage (core) 1 | . . . . . . . . . . . . . . . . . . . 1 . . . . . . Siege Activations 12 | . . . . . . . . . . . . . . . . . . 1 3 2 . . . 5 1 Total Turns 189 | . . . . . . . . . . . . . . . . . . 35 45 12 . . . 85 12 Longest Duration 35 | . . . . . . . . . . . . . . . . . . 35 28 7 . . . 27 12 Robots Corrupted 3 | . . . . . . . . . . . . . . . . . . . . . . 3 . . . Combat Hostiles 2 | . . . . . . . . . . . . . . . . . . . . . . 2 . . . Parts Fried 13 | . . . . . . . . . . . . . . . . . . . . . . 13 . . . Impact Corruptions 1 | . . . . . . . . . . . . . . . . . . 1 . . . . . . . Robots Melted 1 | . 1 . . . . . . . . . . . . . . . . . . . . . . . . Combat Hostiles 1 | . 1 . . . . . . . . . . . . . . . . . . . . . . . . Parts Melted 11 | 1 4 4 1 . . . . . . . . . . 1 . . . . . . . . . . . Heat Transferred 10402 | 333 2849 3034 1110 . 222 . . . . . 148 . 333 703 . . 370 408 300 . . . . 555 37 Parts Sabotaged . | . . . . . . . . . . . . . . . . . . . . . . . . . . Parts Stolen . | . . . . . . . . . . . . . . . . . . . . . . . . . . Parts Stripped . | . . . . . . . . . . . . . . . . . . . . . . . . . . Power Chain Reactions 1 | . . . . . . . . . . . . . . . . . . . . . . . . . 1 Missiles Intercepted . | . . . . . . . . . . . . . . . . . . . . . . . . . . Alert | -11 -10 -9 -9 -9 -8 -8 -7 -7 -7 -7 -6 -6 -5 -5 -5 -5 -4 -4 -4 -4 -4 -4 -3 -2 -1 ------- Run | Scr Mat Mat Min Exi Min Mat Fac Low Low Dat Pro Fac Fac Upp Upp Zhi Pro Fac Ext Cet Arc Hub Res Res Acc Peak Influence 1347 | 10 290 508 252 . 107 131 125 . . . . 151 194 . . . . 761 1324 1347 752 864 530 458 359 Initial 694 | . 6 56 102 . . 41 59 . . . . 35 8 . . . . . 372 694 538 263 426 297 247 Average 400 | 8 149 308 221 . 105 80 61 . . . . 64 85 . . . . 476 819 965 721 351 465 350 264 Maximum Alert Level 4 | . 1 2 1 . . . . . . . . . . . . . . 3 4 4 3 3 2 2 1 Low Security (%) 30 | 100 79 10 22 . 100 100 100 . . . . 100 100 . . . . 12 . . . 10 . . 4 Level 1 29 | . 20 67 77 . . . . . . . . . . . . . . 21 6 . . 66 . 78 95 Level 2 20 | . . 21 . . . . . . . . . . . . . . . 43 40 5 13 . 100 21 . Level 3 12 | . . . . . . . . . . . . . . . . . . 22 23 63 86 23 . . . Level 4 6 | . . . . . . . . . . . . . . . . . . . 29 31 . . . . . Level 5 . | . . . . . . . . . . . . . . . . . . . . . . . . . . High Security . | . . . . . . . . . . . . . . . . . . . . . . . . . . Max Security . | . . . . . . . . . . . . . . . . . . . . . . . . . . Squads Dispatched 44 | . 5 . . . . . 6 . . . . 2 1 . . . . 6 7 1 . 4 4 6 2 Investigation 10 | . 2 . . . . . 3 . . . . . . . . . . . 1 1 . 1 1 . 1 Extermination 7 | . . . . . . . 1 . . . . 1 1 . . . . 2 . . . . . 1 1 Reinforcement 20 | . 3 . . . . . 2 . . . . 1 . . . . . 1 3 . . 2 3 5 . Assault 6 | . . . . . . . . . . . . . . . . . . 3 3 . . . . . . Garrison 1 | . . . . . . . . . . . . . . . . . . . . . . 1 . . . Intercept . | . . . . . . . . . . . . . . . . . . . . . . . . . . Searches Triggered . | . . . . . . . . . . . . . . . . . . . . . . . . . . Data Miner Redirects 5 | . . . . . . . . . . . . . . . . . . . 2 1 . . 1 . 1 Construction Impeded 5 | . . . . . . . . . . . . 1 . . . . . 1 1 . . 1 . 1 . Haulers Reinforced 2 | . . . . . . . 1 . . . . . . . . . . . . . . . . 1 . Active Scanning Responses . | . . . . . . . . . . . . . . . . . . . . . . . . . . Cargo Convoy Interrupts 1 | . . . . . . . . . . . . . . . . . . . . . . . . 1 . Stealth | -11 -10 -9 -9 -9 -8 -8 -7 -7 -7 -7 -6 -6 -5 -5 -5 -5 -4 -4 -4 -4 -4 -4 -3 -2 -1 --------- Run | Scr Mat Mat Min Exi Min Mat Fac Low Low Dat Pro Fac Fac Upp Upp Zhi Pro Fac Ext Cet Arc Hub Res Res Acc Distress Signals 15 | . . 1 . . . 1 . . . . . . . . . . . 2 2 2 1 1 4 1 . Communications Jammed 7 | . . . . . . . . . . . . . . . . . . . . . . . . . 7 Distress Signals 7 | . . . . . . . . . . . . . . . . . . . . . . . . . 7 Times Spotted 317 | . 16 35 8 . 4 4 6 13 . . 2 12 10 13 2 . 14 37 50 18 7 27 7 26 6 Peak Tracking Total 21 | . 4 8 7 . 4 3 3 9 . . 1 5 6 5 2 . 4 8 8 5 2 21 9 9 3 Tactical Retreats 24 | . . 4 1 . . 1 2 3 . . . . 1 . . . . 1 6 . . 2 1 2 . Traps | -11 -10 -9 -9 -9 -8 -8 -7 -7 -7 -7 -6 -6 -5 -5 -5 -5 -4 -4 -4 -4 -4 -4 -3 -2 -1 ------- Run | Scr Mat Mat Min Exi Min Mat Fac Low Low Dat Pro Fac Fac Upp Upp Zhi Pro Fac Ext Cet Arc Hub Res Res Acc Traps Triggered 11 | . 2 1 . . . . . . . . . 3 1 . . . . 1 . . . 3 . . . Indirectly 1 | . . . . . . . . . . . . . . . . . . . . . . 1 . . . Trap Hack Attempts . | . . . . . . . . . . . . . . . . . . . . . . . . . . Triggered . | . . . . . . . . . . . . . . . . . . . . . . . . . . Disarmed . | . . . . . . . . . . . . . . . . . . . . . . . . . . Reprogrammed . | . . . . . . . . . . . . . . . . . . . . . . . . . . Reused 2 | . . . . . . . . 2 . . . . . . . . . . . . . . . . . Traps Extracted . | . . . . . . . . . . . . . . . . . . . . . . . . . . Installed 3 | . . . . . . . . 3 . . . . . . . . . . . . . . . . . Triggered 6 | . . . . . . . . 3 . . 1 . . . . . . . . . . . . 2 . Exploded 1 | . . . . 1 . . . . . . . . . . . . . . . . . . . . . Machines | -11 -10 -9 -9 -9 -8 -8 -7 -7 -7 -7 -6 -6 -5 -5 -5 -5 -4 -4 -4 -4 -4 -4 -3 -2 -1 ---------- Run | Scr Mat Mat Min Exi Min Mat Fac Low Low Dat Pro Fac Fac Upp Upp Zhi Pro Fac Ext Cet Arc Hub Res Res Acc Machines Disabled 42 | . . . 1 . . . . . . . . . 1 . . . . 20 1 3 3 8 . 2 3 Max in Single Turn 7 | . . . 1 . . . . . . . . . 1 . . . . 4 . . 1 7 . 1 1 Garrison Access 4 | . . . . . . . 1 . . . . . 1 . . . . . . . . . . 1 1 Network Hub 1 | . . . . . . . . . . . . . . . . . . . . . . 1 . . . Machines Sabotaged . | . . . . . . . . . . . . . . . . . . . . . . . . . . Garrisons Compromised 1 | . . . . . . . . . . . . . . . . . . . . . . . . 1 . Overloaded Fab Kills . | . . . . . . . . . . . . . . . . . . . . . . . . . . Hacking | -11 -10 -9 -9 -9 -8 -8 -7 -7 -7 -7 -6 -6 -5 -5 -5 -5 -4 -4 -4 -4 -4 -4 -3 -2 -1 --------- Run | Scr Mat Mat Min Exi Min Mat Fac Low Low Dat Pro Fac Fac Upp Upp Zhi Pro Fac Ext Cet Arc Hub Res Res Acc Machines Accessed 69 | . 4 6 1 2 . 2 19 . 1 4 . 4 1 . 1 4 . 5 3 1 . 1 5 1 4 Terminals 34 | . 2 5 . . . 1 11 . . . . 2 . . . . . 2 2 1 . 1 5 . 2 Fabricators 10 | . . . . . . . 5 . . . . 2 . . . . . 2 . . . . . . 1 Repair Stations 1 | . . . . . . . 1 . . . . . . . . . . . . . . . . . . Recycling Units 7 | . 2 1 . . . 1 1 . . . . . . . . . . 1 1 . . . . . . Scanalyzers . | . . . . . . . . . . . . . . . . . . . . . . . . . . Garrison Access 4 | . . . . . . . 1 . . . . . 1 . . . . . . . . . . 1 1 Total Hacks 192 | . 10 13 1 2 . 7 41 . 1 29 . 10 1 . 1 17 . 19 10 3 . 3 16 2 6 Successful 91 | . 3 5 1 2 . 4 9 . 1 29 . . 1 . 1 17 . 6 4 . . 2 3 1 2 Failed 101 | . 7 8 . . . 3 32 . . . . 10 . . . . . 13 6 3 . 1 13 1 4 Catastrophic 28 | . 1 2 . . . 1 10 . . . . 2 . . . . . 4 2 . . . 4 . 2 Database Lockouts . | . . . . . . . . . . . . . . . . . . . . . . . . . . Manual 57 | . 5 4 . 1 . 3 15 . . . . 5 . . . . . 8 8 1 . 1 5 . 1 Terminals 101 | . 6 11 . . . 6 27 . . . . 5 . . . . . 11 9 3 . 3 16 . 4 Fabricators 22 | . . . . . . . 10 . . . . 5 . . . . . 6 . . . . . . 1 Repair Stations 1 | . . . . . . . 1 . . . . . . . . . . . . . . . . . . Recycling Units 11 | . 4 2 . . . 1 1 . . . . . . . . . . 2 1 . . . . . . Scanalyzers . | . . . . . . . . . . . . . . . . . . . . . . . . . . Garrison Access 6 | . . . . . . . 2 . . . . . 1 . . . . . . . . . . 2 1 Terminal Hacks 74 | . 2 4 1 2 . 3 5 . 1 29 . . . . 1 17 . 2 3 . . 1 3 . . Record 18 | . . . . 1 . . . . . 11 . . . . . 5 . . 1 . . . . . . Part Schematic 14 | . . . . . . . . . . 10 . . . . . 4 . . . . . . . . . Robot Schematic 5 | . . . . . . . . . . 5 . . . . . . . . . . . . . . . Robot Analysis 8 | . 1 1 . . . 2 . . . . . . . . . 4 . . . . . . . . . Prototype ID Bank 12 | . . 2 . . . 1 1 . . 3 . . . . . 4 . . . . . . 1 . . Open Door 3 | . . . 1 . . . . . 1 . . . . . 1 . . . . . . . . . . Level Access Points 2 | . . . . . . . 1 . . . . . . . . . . . . . . . 1 . . Branch Access Points 2 | . . . . . . . 1 . . . . . . . . . . 1 . . . . . . . Unreport Threat 6 | . . 1 . . . . 2 . . . . . . . . . . . 2 . . 1 . . . Locate Traps 2 | . . . . . . . . . . . . . . . . . . 1 . . . . 1 . . Surveillance Status 1 | . 1 . . . . . . . . . . . . . . . . . . . . . . . . EX-Prototype ID Bank 1 | . . . . 1 . . . . . . . . . . . . . . . . . . . . . Fabricator Hacks 2 | . . . . . . . 1 . . . . . . . . . . 1 . . . . . . . Network Status 2 | . . . . . . . 1 . . . . . . . . . . 1 . . . . . . . Repair Station Hacks . | . . . . . . . . . . . . . . . . . . . . . . . . . . Recycling Unit Hacks 4 | . . 1 . . . 1 1 . . . . . . . . . . . 1 . . . . . . Retrieve Components 4 | . . 1 . . . 1 1 . . . . . . . . . . . 1 . . . . . . Scanalyzer . | . . . . . . . . . . . . . . . . . . . . . . . . . . Garrison Access Hacks 4 | . . . . . . . 1 . . . . . 1 . . . . . . . . . . 1 1 Seal Access 4 | . . . . . . . 1 . . . . . 1 . . . . . . . . . . 1 1 Unauthorized Hacks 7 | . 1 . . . . . 1 . . . . . . . . . . 3 . . . 1 . . 1 Terminals 3 | . . . . . . . . . . . . . . . . . . 1 . . . 1 . . 1 Botnet 2 | . . . . . . . . . . . . . . . . . . 1 . . . . . . 1 Sabotage 1 | . . . . . . . . . . . . . . . . . . . . . . 1 . . . Fabricators 3 | . . . . . . . 1 . . . . . . . . . . 2 . . . . . . . Liberate 1 | . . . . . . . 1 . . . . . . . . . . . . . . . . . . Fabnet 2 | . . . . . . . . . . . . . . . . . . 2 . . . . . . . Repair Stations . | . . . . . . . . . . . . . . . . . . . . . . . . . . Recycling Units 1 | . 1 . . . . . . . . . . . . . . . . . . . . . . . . Tunnel 1 | . 1 . . . . . . . . . . . . . . . . . . . . . . . . Scanalyzers . | . . . . . . . . . . . . . . . . . . . . . . . . . . Garrison Access . | . . . . . . . . . . . . . . . . . . . . . . . . . . Data Cores Recovered 2 | . . 2 . . . . . . . . . . . . . . . . . . . . . . . Used . | . . . . . . . . . . . . . . . . . . . . . . . . . . Hacking Detections 48 | . 3 6 . . . 1 18 . . . . 4 . . . . . 4 2 1 . 1 5 . 3 Full Trace Events 7 | . . . . . . 1 3 . . . . . . . . . . . . 1 . . 1 . 1 Feedback Events 2 | . . . . . . . 1 . . . . . . . . . . . . . . . 1 . . Corruption 2 | . . . . . . . 1 . . . . . . . . . . . . . . . 1 . . Feedback Blocked . | . . . . . . . . . . . . . . . . . . . . . . . . . . Robot Schematics Acquired 5 | . . . . . . . . . . 5 . . . . . . . . . . . . . . . Robots Built . | . . . . . . . . . . . . . . . . . . . . . . . . . . Authchips . | . . . . . . . . . . . . . . . . . . . . . . . . . . Time . | . . . . . . . . . . . . . . . . . . . . . . . . . . Total Robot Build Rating . | . . . . . . . . . . . . . . . . . . . . . . . . . . Part Schematics Acquired 14 | . . . . . . . . . . 10 . . . . . 4 . . . . . . . . . Parts Built . | . . . . . . . . . . . . . . . . . . . . . . . . . . Authchips . | . . . . . . . . . . . . . . . . . . . . . . . . . . Time . | . . . . . . . . . . . . . . . . . . . . . . . . . . Total Part Build Rating . | . . . . . . . . . . . . . . . . . . . . . . . . . . Parts Repaired . | . . . . . . . . . . . . . . . . . . . . . . . . . . Time . | . . . . . . . . . . . . . . . . . . . . . . . . . . Parts Recycled . | . . . . . . . . . . . . . . . . . . . . . . . . . . Recycled Matter . | . . . . . . . . . . . . . . . . . . . . . . . . . . Retrieved Matter . | . . . . . . . . . . . . . . . . . . . . . . . . . . Retrieved Components 17 | . . 10 . . . 1 3 . . . . . . . . . . . 3 . . . . . . Parts Scanalyzed . | . . . . . . . . . . . . . . . . . . . . . . . . . . Part Schematics Acquired . | . . . . . . . . . . . . . . . . . . . . . . . . . . Parts Damaged . | . . . . . . . . . . . . . . . . . . . . . . . . . . Bothacking | -11 -10 -9 -9 -9 -8 -8 -7 -7 -7 -7 -6 -6 -5 -5 -5 -5 -4 -4 -4 -4 -4 -4 -3 -2 -1 ------------ Run | Scr Mat Mat Min Exi Min Mat Fac Low Low Dat Pro Fac Fac Upp Upp Zhi Pro Fac Ext Cet Arc Hub Res Res Acc Used RIF Installer . | . . . . . . . . . . . . . . . . . . . . . . . . . . Robots Hacked 1 | . . . . . . . . . . . . . . . . . . . . . . . . 1 . Non-combat . | . . . . . . . . . . . . . . . . . . . . . . . . . . Combat 1 | . . . . . . . . . . . . . . . . . . . . . . . . 1 . Robot Hacks Applied . | . . . . . . . . . . . . . . . . . . . . . . . . . . Relay Couplers Released 8 | . . . . . . . . . . . . . . . . . . 4 . . . . . . 4 Programmers 8 | . . . . . . . . . . . . . . . . . . 4 . . . . . . 4 Fabnet Peak Effective % 6 | . . . . . . . . . . . . . . . . . . . . . . . 6 2 . Autooverrided 1 | . . . . . . . . . . . . . . . . . . . . . . . . 1 . Robots Rewired 11 | . . . . . . . . . . . . . . . . . . 2 9 . . . . . . Allies Hacked 1 | . . . . . . . . . . . . . . . . . . . 1 . . . . . . Hacks Repelled . | . . . . . . . . . . . . . . . . . . . . . . . . . . Allies | -11 -10 -9 -9 -9 -8 -8 -7 -7 -7 -7 -6 -6 -5 -5 -5 -5 -4 -4 -4 -4 -4 -4 -3 -2 -1 -------- Run | Scr Mat Mat Min Exi Min Mat Fac Low Low Dat Pro Fac Fac Upp Upp Zhi Pro Fac Ext Cet Arc Hub Res Res Acc Total Allies 34 | . . . . . . . 3 . . . 1 . . . . . . 2 22 5 . . . 1 . Largest Group 8 | . . . . . . . 3 . . . 1 1 . . . . . 2 8 7 4 2 . 1 . Highest-Rated Group 623 | . . . . . . . 48 . . . 96 96 . . . . . 59 454 623 431 192 . 89 . Highest-Rated Ally 159 | . . . . . . . 16 . . . 96 96 . . . . . 47 159 143 143 96 . 89 . Total Orders 2 | . . . . . . . . . . . . . . . . . . . . . . . . 2 . EXPLORE 2 | . . . . . . . . . . . . . . . . . . . . . . . . 2 . Ally Attacks 333 | . . . . . . . 8 . . . 5 8 . . . . . 10 202 75 13 9 . 3 . Total Damage 9690 | . . . . . . . 106 . . . 307 143 . . . . . 217 6065 1904 514 366 . 68 . Kills 50 | . . . . . . . . . . . 1 1 . . . . . . 38 8 2 . . . . Allies Corrupted 1 | . . . . . . . . . . . . 1 . . . . . . . . . . . . . Allies Melted . | . . . . . . . . . . . . . . . . . . . . . . . . . . Intel | -11 -10 -9 -9 -9 -8 -8 -7 -7 -7 -7 -6 -6 -5 -5 -5 -5 -4 -4 -4 -4 -4 -4 -3 -2 -1 ------- Run | Scr Mat Mat Min Exi Min Mat Fac Low Low Dat Pro Fac Fac Upp Upp Zhi Pro Fac Ext Cet Arc Hub Res Res Acc Robot Analysis Total 8 | . 1 1 . . . 2 . . . . . . . . . 4 . . . . . . . . . Derelict Logs Recovered 7 | . . . 2 . . . . . 1 . 1 . . 1 . . 2 . . . . . . . . Drone Launches 12 | . . . . . . . . . . . . . . . . . . . . . . . . 12 . Drone Recoveries 2 | . . . . . . . . . . . . . . . . . . . . . . . . 2 . Exploration | -11 -10 -9 -9 -9 -8 -8 -7 -7 -7 -7 -6 -6 -5 -5 -5 -5 -4 -4 -4 -4 -4 -4 -3 -2 -1 ------------- Run | Scr Mat Mat Min Exi Min Mat Fac Low Low Dat Pro Fac Fac Upp Upp Zhi Pro Fac Ext Cet Arc Hub Res Res Acc Turns Passed 13577 | 34 500 1036 318 306 249 137 575 310 152 36 334 866 358 507 976 354 872 1020 1730 378 330 215 376 1079 529 Spaces Moved 9032 | 17 276 571 437 464 206 138 1019 442 316 78 291 522 302 338 531 165 393 530 723 179 121 97 204 400 272 Core . | . . . . . . . . . . . . . . . . . . . . . . . . . . Treads 2329 | . . 174 . . . . . . . . . . . . . . . 159 723 179 121 97 204 400 272 Legs 1672 | 17 276 290 . . . . . . . . . 22 . . 389 165 393 120 . . . . . . . Wheels 1195 | . . . . . . . . . . . . 306 302 336 . . . 251 . . . . . . . Hover 3836 | . . 107 437 464 206 138 1019 442 316 78 291 194 . 2 142 . . . . . . . . . . Flight . | . . . . . . . . . . . . . . . . . . . . . . . . . . Fastest Speed 44 | 120 120 52 52 52 112 48 44 44 44 44 44 95 108 93 120 120 190 99 160 160 160 160 160 152 152 Average Speed 114 | 120 120 120 52 64 112 79 44 52 44 44 106 130 108 134 172 189 190 127 160 160 160 160 160 159 152 Slowest Speed 300 | 120 190 190 52 112 112 112 44 104 44 44 112 300 108 206 206 190 190 190 160 160 160 160 160 160 152 Overloaded Moves . | . . . . . . . . . . . . . . . . . . . . . . . . . . Propulsion Burnouts . | . . . . . . . . . . . . . . . . . . . . . . . . . . Robots Hopped . | . . . . . . . . . . . . . . . . . . . . . . . . . . Cave-ins Triggered 2 | . . . . . . . . . . . . . . . . . . 1 1 . . . . . . Exploration Rate (%) 45 | 2 60 57 91 90 57 19 34 51 46 69 46 23 11 53 66 60 62 20 81 67 72 19 7 14 7 Regions Visited 25 Branch Regions 15 Pre-discovered Areas 9 | . 1 . 1 1 . . . . . 1 . . . 1 . 3 1 . . . . . . . . Known Exits Taken 5 | . . . . . . 1 1 . . . 1 . . . . . . 1 . . . . 1 . . Unknown Exits Taken 20 | 1 1 1 1 1 1 . . 1 1 1 . 1 1 1 1 1 1 . 1 1 1 1 . 1 . Scrap Searched 10 | . . . 3 . . . . 3 . . 1 . . . 2 . 1 . . . . . . . . Spaces Dug 133 | . . 8 . . . 4 27 6 4 . 3 16 1 2 1 . . 30 . . . 3 6 16 6 Terrain Destroyed 804 | . . 8 . . 2 4 30 8 4 . 3 16 20 141 77 . 116 123 6 10 6 174 7 29 20 Melee 89 | . . 8 . . . 4 25 6 4 . 3 12 1 2 1 . . 20 . . . 3 . . . Projectile 146 | . . . . . 2 . 5 2 . . . . . 3 3 . 26 34 6 10 6 6 7 28 8 AOE 566 | . . . . . . . . . . . . 4 19 136 73 . 90 69 . . . 164 . . 11 Terrain Rammed . | . . . . . . . . . . . . . . . . . . . . . . . . . . Walls Destroyed . | . . . . . . . . . . . . . . . . . . . . . . . . . . Machines Disabled . | . . . . . . . . . . . . . . . . . . . . . . . . . . Actions | -11 -10 -9 -9 -9 -8 -8 -7 -7 -7 -7 -6 -6 -5 -5 -5 -5 -4 -4 -4 -4 -4 -4 -3 -2 -1 --------- Run | Scr Mat Mat Min Exi Min Mat Fac Low Low Dat Pro Fac Fac Upp Upp Zhi Pro Fac Ext Cet Arc Hub Res Res Acc Total 11141 | 22 351 790 487 470 224 160 1092 497 322 79 304 646 328 363 563 192 444 713 1186 241 236 136 245 717 333 Wait 756 | . 3 47 8 . 19 . 1 29 . . 5 29 . . . . 1 17 270 14 78 25 2 202 6 Move 9006 | 16 275 570 436 463 205 137 1018 441 315 77 290 521 301 337 530 164 392 529 722 178 120 96 203 399 271 Hop . | . . . . . . . . . . . . . . . . . . . . . . . . . . Pick Up 152 | 1 8 13 7 2 . 5 9 1 1 . 1 4 8 2 3 2 4 12 20 9 3 . 13 16 8 Fast Attach 96 | 1 2 13 . 1 . 1 4 2 . 1 . 14 2 1 6 7 1 11 8 3 7 1 4 5 1 Attach 64 | . 1 8 2 . . 3 3 1 . . 1 1 1 2 1 . 4 12 3 1 1 . 10 4 5 Detach 11 | . . 2 . . . . 1 1 . . . 1 . . . . 1 2 . . . . 2 1 . Swap 116 | . 6 23 3 . . 2 5 1 1 . 1 9 2 4 2 . 6 6 11 3 4 4 1 13 9 Drop 192 | . 9 32 7 4 . 6 11 . 1 1 . 14 8 1 5 8 . 11 28 13 10 . 3 15 5 Fire 500 | 4 47 71 24 . . 2 8 12 . . 3 35 4 13 10 . 35 53 54 20 7 6 7 57 28 Melee 142 | . . 8 . . . 4 32 6 4 . 3 18 2 3 6 11 . 26 10 . 6 3 . . . Ram . | . . . . . . . . . . . . . . . . . . . . . . . . . . Kick 6 | . . . . . . . . . . . . . . . . . . 6 . . . . . . . Crush 5 | . . 3 . . . . . . . . . . . . . . . 1 . . . 1 . . . Escape Stasis . | . . . . . . . . . . . . . . . . . . . . . . . . . . Rewire 87 | . . . . . . . . . . . . . . . . . . 27 60 . . . . . . Trap 3 | . . . . . . . . 3 . . . . . . . . . . . . . . . . . Miscellaneous 5 | . . . . . . . . . . . . . . . . . . . . . . . . 5 . Route ------- -11/Scrapyard -10/Materials (discovered 3 exits: *Mat x2 / [*Min]) -9/Materials (discovered 3 exits: *Mat x2 / *Min) -9/Mines (discovered 3 exits: *Mat x2 / *Exi) -9/Exiles -8/Mines -8/Materials (discovered 2 exits: *Fac x2) -7/Factory (discovered 7 exits: Fac x4 / Sto / *Low x2) -7/Lower Caves -7/Lower Caves (discovered 2 exits: *Fac / *Dat) -7/Data Miner -6/Proximity Caves -6/Factory -5/Factory -5/Upper Caves -5/Upper Caves (discovered 2 exits: *Fac / *Zhi) -5/Zhirov -4/Proximity Caves -4/Factory (discovered 5 exits: *Upp x2 / *Ext x2 / Arm) -4/Extension (discovered 2 exits: *Res / *Cet) -4/Cetus (discovered 2 exits: *Res / [*Arc]) -4/Archives (discovered 3 exits: *Res / *Hub x2) -4/Hub_04(d) (discovered 2 exits: *Res x2) -3/Research (discovered 3 exits: *Res x3) -2/Research (discovered 2 exits: *Acc / [*Tes]) -1/Access To Epsilon Eridani History --------- Turn | Location | Event 14 | -11/Scrapyard | Discovered new exit (range 3) 35 | -11/Scrapyard | Entered Materials 318 | -10/Materials | Discovered new exit (range 8) 332 | -10/Materials | Build established: Mutant 426 | -10/Materials | Discovered new exit (range 10) 507 | -10/Materials | Discovered new exit (range 12) 535 | -10/Materials | Entered another Materials area 535 | -9/Materials | Evolved 2 slots: Propulsion x1, Utility x1 988 | -9/Materials | Build established: Scavenger-Mutant 1052 | -9/Materials | Discovered new exit (range 4) 1145 | -9/Materials | Core integrity fell below 50% 1184 | -9/Materials | Lost 3 parts (2n1u) 1462 | -9/Materials | Discovered new exit (range 5) 1548 | -9/Materials | Discovered new exit (range 6) 1571 | -9/Materials | Entered Mines 1593 | -9/Mines | Learned location of Storage (-7) 1713 | -9/Mines | Learned location of 1 exit from Materials 1725 | -9/Mines | Discovered new exit (range 9) 1727 | -9/Mines | Discovered new exit (range 14) 1733 | -9/Mines | Met a Derelict who couldn't figure out how to use a Trap Extractor 1765 | -9/Mines | YI-UF0 nonchalantly dropped a Grenade Launcher on the ground 1792 | -9/Mines | Destroyed YI-UF0 1887 | -9/Mines | Deemed a non-threat by the Exiles lab entrance 1887 | -9/Mines | Discovered new exit (range 5) 1889 | -9/Mines | Entered Exiles 1903 | -9/Exiles | Met 8R-AWN 1911 | -9/Exiles | Met EX-HEX 1932 | -9/Exiles | Met EX-DEC 1934 | -9/Exiles | Learned location of Zion (-6) 1979 | -9/Exiles | Visited The Gauntlet 2056 | -9/Exiles | Met EX-BIN 2063 | -9/Exiles | Aligned with FarCom system 2063 | -9/Exiles | Given EX-Vault access code 2076 | -9/Exiles | Opened EX-Vault 2080 | -9/Exiles | Found AWS/Thermal 2109 | -9/Exiles | Warned to stay clear of 0b10 Research branches 2124 | -9/Exiles | Exiles lab attacked by MAIN.C 2186 | -9/Exiles | Discovered new exit (range 10) 2195 | -9/Exiles | Left Exiles lab with AWS/Thermal 2195 | -9/Exiles | Entered Mines 2370 | -8/Mines | Build established: Mutant 2418 | -8/Mines | Discovered new exit (range 11) 2444 | -8/Mines | Entered Materials 2444 | -8/Materials | Evolved 2 slots: Propulsion x1, Utility x1 2445 | -8/Materials | Identified exit to Factory 2574 | -8/Materials | Discovered exit to Factory (range 3) 2581 | -8/Materials | Entered Factory 2581 | -7/Factory | Evolved 2 slots: Propulsion x1, Utility x1 2666 | -7/Factory | Identified exit to Factory 2678 | -7/Factory | Discovered new exit (range 13) 2728 | -7/Factory | Identified exit to Storage 2728 | -7/Factory | Identified exit to Lower Caves 2816 | -7/Factory | Build established: Scavenger-Scout 3156 | -7/Factory | Entered Lower Caves 3191 | -7/Lower Caves | Spotted B-75 Beast 3294 | -7/Lower Caves | Attracted the attention of an 0b10 outpost 3458 | -7/Lower Caves | Discovered new exit (range 5) 3466 | -7/Lower Caves | Entered another Lower Caves area 3469 | -7/Lower Caves | Encountered a Warlord checkpoint 3478 | -7/Lower Caves | Discovered exit to Factory (range 12) 3610 | -7/Lower Caves | Learned 8 Factory zone layouts 3614 | -7/Lower Caves | Discovered new exit (range 9) 3618 | -7/Lower Caves | Entered Data Miner 3618 | -7/Data Miner | Discovered new exit (range 6) 3628 | -7/Data Miner | Met Data Miner 3636 | -7/Data Miner | Learned location of Section 7 (-3) 3636 | -7/Data Miner | Acquired the access code to Warlord's prototype stash 3643 | -7/Data Miner | Received God Mode back door access code from Data Miner 3654 | -7/Data Miner | Entered Proximity Caves 3761 | -6/Proximity Caves | Escorted by Enhanced Grunt 3796 | -6/Proximity Caves | Learned Factory security intel 3947 | -6/Proximity Caves | Build established: Scavenger-Assassin 3975 | -6/Proximity Caves | Discovered exit to Factory (range 10) 3988 | -6/Proximity Caves | Entered Factory 3988 | -6/Factory | Accompanied by 1 ally 3988 | -6/Factory | Evolved 2 slots: Propulsion x1, Utility x1 4601 | -6/Factory | Build established: Scavenger-Mutant 4824 | -6/Factory | Discovered new exit (range 7) 4854 | -6/Factory | Entered another Factory area 4854 | -5/Factory | Evolved 2 slots: Power x1, Weapon x1 5166 | -5/Factory | Discovered new exit (range 12) 5212 | -5/Factory | Entered Upper Caves 5689 | -5/Upper Caves | Discovered new exit (range 9) 5708 | -5/Upper Caves | Build established: Assassin 5714 | -5/Upper Caves | Attracted the attention of an 0b10 checkpoint 5719 | -5/Upper Caves | Entered another Upper Caves area 5760 | -5/Upper Caves | Discovered new exit (range 7) 6533 | -5/Upper Caves | Discovered new exit (range 16) 6695 | -5/Upper Caves | Entered Zhirov 6695 | -5/Zhirov | Discovered new exit (range 3) 6713 | -5/Zhirov | Build established: Scavenger-Assassin 6730 | -5/Zhirov | Met Zhirov 6771 | -5/Zhirov | Learned location of Quarantine (-3) 6771 | -5/Zhirov | Learned location of Testing (-2) 6771 | -5/Zhirov | Learned location of Command (-1) 6783 | -5/Zhirov | Zhirov requested help retrieving the SGEMP Prototype 6812 | -5/Zhirov | Found Alien Artifact 6812 | -5/Zhirov | Identified Integrated Reactor 6812 | -5/Zhirov | Installed Integrated Reactor, increased core energy generation (+10) 6838 | -5/Zhirov | Found Alien Artifact 7049 | -5/Zhirov | Entered Proximity Caves 7604 | -4/Proximity Caves | Attracted the attention of an 0b10 checkpoint 7892 | -4/Proximity Caves | Discovered new exit (range 16) 7899 | -4/Proximity Caves | Build established: Gunner 7921 | -4/Proximity Caves | Entered Factory 7921 | -4/Factory | Evolved 2 slots: Utility x1, Weapon x1 7922 | -4/Factory | Identified exit to Armory 8280 | -4/Factory | Build established: Assassin 8302 | -4/Factory | Identified exit to Upper Caves 8302 | -4/Factory | Identified exit to Extension 8421 | -4/Factory | First assault squad dispatched 8601 | -4/Factory | Crushed by falling debris 8632 | -4/Factory | Lost 5 parts (1p2n1u1w) 8797 | -4/Factory | Spotted B-86 Titan 8941 | -4/Factory | Entered Extension 9000 | -4/Extension | Rescued a captive Derelict 9014 | -4/Extension | Rescued a captive Derelict 9014 | -4/Extension | Rescued a captive Derelict 9018 | -4/Extension | Rescued a captive Derelict 9035 | -4/Extension | Rescued a captive Derelict 9146 | -4/Extension | Rescued A7 9290 | -4/Extension | Rescued a captive Derelict 9302 | -4/Extension | Rescued a captive Derelict 9441 | -4/Extension | First assault squad dispatched 9589 | -4/Extension | Build established: Scavenger-Mutant 9593 | -4/Extension | System corruption reached 10% 9688 | -4/Extension | Incoming assault squad redirected 9721 | -4/Extension | Incoming assault squad redirected 9782 | -4/Extension | Spotted B-86 Titan 9791 | -4/Extension | Disrupted transfer network 9791 | -4/Extension | Allies destroyed B-86 Titan 9972 | -4/Extension | Rescued a captive Derelict 9973 | -4/Extension | Rescued a captive Derelict 10260 | -4/Extension | Crushed by falling debris 10260 | -4/Extension | Core integrity fell below 50% 10300 | -4/Extension | Rescued a captive Derelict 10301 | -4/Extension | Rescued a captive Derelict 10354 | -4/Extension | Rescued a captive Derelict 10417 | -4/Extension | Discovered new exit (range 10) 10419 | -4/Extension | Discovered new exit (range 6) 10671 | -4/Extension | Entered Cetus 10671 | -4/Cetus | Accompanied by 7 allies (A7) 10676 | -4/Cetus | Acquired a Cetus Manufacturing Module code from A7 10690 | -4/Cetus | Destroyed Cetus Guard 10693 | -4/Cetus | Spotted Cetus Guard 10693 | -4/Cetus | Spotted Cetus Guard 10694 | -4/Cetus | Spotted Cetus Guard 10705 | -4/Cetus | Destroyed Cetus Guard 10708 | -4/Cetus | Allies destroyed Cetus Guard 10713 | -4/Cetus | Destroyed Cetus Guard 10821 | -4/Cetus | Started Cetus Manufacturing Module 10846 | -4/Cetus | Manufactured an Enhanced Grunt 10856 | -4/Cetus | Incoming investigation squad redirected 10870 | -4/Cetus | Discovered new exit (range 16) 10871 | -4/Cetus | Manufactured an Enhanced Grunt 10896 | -4/Cetus | Manufactured an Enhanced Grunt 10899 | -4/Cetus | Destroyed Cetus Guard 10899 | -4/Cetus | Destroyed Cetus Guard 10902 | -4/Cetus | Destroyed Cetus Guard 10904 | -4/Cetus | Spotted Cetus Guard 10905 | -4/Cetus | Destroyed Cetus Guard 10921 | -4/Cetus | Manufactured an Enhanced Grunt 10940 | -4/Cetus | Discovered new exit (range 16) 10946 | -4/Cetus | Manufactured an Enhanced Grunt 10950 | -4/Cetus | Met Revision 17 11013 | -4/Cetus | Build established: Scavenger-Gunner 11049 | -4/Cetus | Entered Archives 11049 | -4/Archives | Accompanied by 4 allies (A7) 11114 | -4/Archives | Discovered new exit (range 15) 11306 | -4/Archives | Discovered new exit (range 15) 11337 | -4/Archives | Discovered new exit (range 18) 11379 | -4/Archives | Entered Hub_04(d) 11379 | -4/Hub_04(d) | Accompanied by 2 allies 11379 | -4/Hub_04(d) | Discovered new exit (range 10) 11393 | -4/Hub_04(d) | Discovered new exit (range 22) 11543 | -4/Hub_04(d) | Network Hub disabled 11543 | -4/Hub_04(d) | Spotted Lightning 11543 | -4/Hub_04(d) | Spotted Lightning 11543 | -4/Hub_04(d) | Spotted Lightning 11543 | -4/Hub_04(d) | Spotted Lightning 11543 | -4/Hub_04(d) | Spotted Lightning 11543 | -4/Hub_04(d) | Spotted Lightning 11543 | -4/Hub_04(d) | Garrison activated, responded to threat 11594 | -4/Hub_04(d) | Entered Research 11594 | -3/Research | Evolved 2 slots: Utility x2 11618 | -3/Research | Lost 6 parts (2p1n3w) 11633 | -3/Research | Found Prototype Processor 11633 | -3/Research | Identified Exp. Terrain Scan Processor 11636 | -3/Research | Found Exp. Terrain Scan Processor 11641 | -3/Research | Found Exp. Terrain Scan Processor 11643 | -3/Research | Found Exp. Terrain Scan Processor 11664 | -3/Research | Incoming investigation squad redirected 11794 | -3/Research | Revision forces began assault on 0b10 11802 | -3/Research | Discovered new exit (range 21) 11811 | -3/Research | Identified exit to Research 11943 | -3/Research | Met up with Revision 17++ 11970 | -3/Research | Entered another Research area 11970 | -2/Research | Evolved 2 slots: Utility x1, Weapon x1 12005 | -2/Research | Discovered new exit (range 15) 12591 | -2/Research | Found Gamma Bomb Array 12594 | -2/Research | Found Gamma Bomb Array 12596 | -2/Research | Cargo convoy interrupted 12822 | -2/Research | Found Gamma Bomb Array 12828 | -2/Research | Found Gamma Bomb Array 12934 | -2/Research | Discovered new exit (range 22) 13049 | -2/Research | Entered Access 13049 | -1/Access | Evolved 2 slots: Utility x1, Weapon x1 13079 | -1/Access | Lost 4 parts (1p1n1u1w) 13318 | -1/Access | Discovered new exit (range 24) 13326 | -1/Access | Build established: Scavenger-Executioner 13395 | -1/Access | Incoming investigation squad redirected 13578 | *** | Escaped! Last Messages --------------- 13550_ Slug penetrates P-80 Master. 13550_ P-80 Master suffers critical hit (Destroy). 13550_ Destroyed Imp. Antigrav System. 13550_ P-80 Master destroyed. 13550_ Switching to secondary target: P-80 Master. 13550_ Slug penetrates P-80 Master. 13550_ Destroyed Imp. Antigrav System. 13550_ R-10 Processor distress signal jammed. 13551_ :3JN 13554_ Slug penetrates Wall. 13554_ Slug penetrates P-80 Master. 13554_ Destroyed Gamma Rifle. 13554_ Slug penetrates P-80 Master. 13557_ P-80 Master destroyed. 13557_ Slug penetrates Wall. 13562_ Acquired 65 matter. 13562_ Acquired 60 matter. 13562_ Acquired 29 matter. 13573_ Main Access Shell breached. Map ----- +----------------------------------------------------+ | ?????? + #"" ## ???????????????????????? | | ???? # #"" ## ??????????????????????? | | ???""T"" # #"T ## # ???????????????????? | | """"" # #"" ## # ??????????????????? | | ########### #"" ## # ? ???????????????? | | # #"" ## # ???????????????? | | # #"" ## # ?????????????? | | "" # #" ## + ? ? ??????????? | | "" # # ## # ??????????? | | """""" # # ## #############?????????? | | """""" # ###+##+##### # """"" ? ?????????? | | "" + # ""T"" ??#???????? | | "" # + ?###????? | | # ############### ????????? | | #!!############### ##?#????? | | #!%############### ??##?????? | | #!!##############################?#????? | | ########### !############################?###????? | | ## ################################????? | | ## #######"#####################?##????? | | ## """T"""" """" #??? ???? | | ## "" """" """" BB ##?? ???? | | ###+####### " """""" """" BB ###?????? | | ### ####### " " " """" ??????? | | ### ####### " " "" " """" ? ??? | | ####### " @" " """" ? ? | | ####### !! " " " """" ???? | | ###+####### !! ! " """""" """" BB #####???? | | ## ###[! !|! """" BB ####????? | | ## # #[!!!! " """" #### ??? | | ## ###=[### ###"######################## ???? | | ## ### ### ########################????? | | ## ### #######"######################## ???? | | ## # # ## """"""" ################ ???? | | ### ### ## """Y""" ##############??????? | | ### ### ## ###############?????? | | ### ### ## ################????? | | ### ### ## ###############?????? | | # ### %## ##############??????? | | # ## ###+#########################??????? | | ######## ## """""" ####??????? | | ### #### ## """""" ###???????? | | ### #### ##### ## """""" # #??????? | | ################# ## """""" ##????????? | | + """"" ## ## """""" ##?#??????? | | #### """"" ## ## ##?#??????? | | #### """"" ## ## ####??????? | | +####"" """"" ## ## ####??????? | | ###"" """"" ## ## ###???????? | | =###"" # ###+###############?#??????? | +----------------------------------------------------+ Best States ------------- Heat Dissipation 87 Coolant Potential 100 Energy Generation 55 Energy Capacity 600 Matter Stores 300 Matter Capacity 300 Sight Range 22 Terrain Scan Range 24 Terrain Scan Density 1010 Jamming Range 16 Armor Coverage 675 Resistance: KI 30 Resistance: TH 15 Weapon Shielding 90 Weapon Cycling 20 Evasion (%) 56 Targeting Accuracy 28 Recoil Reduction 6 Matter Filtering 30 Offensive Hacking 24 Defensive Hacking 22 Item Schematics ----------------- Combat Drone Bay | -7/Data Miner | Free Lgt. Regenerative Plating | -7/Data Miner | Free Cld. Aerolev Unit | -7/Data Miner | Free Gravity Neutralizer | -7/Data Miner | Free Imp. Heavy Machine Gun | -7/Data Miner | Free Nuclear Pulse Array | -7/Data Miner | Free Imp. Focal Shield | -7/Data Miner | Free Tesla Rifle | -7/Data Miner | Free Myomer Leg | -7/Data Miner | Free Graphene Brace | -7/Data Miner | Free Assault Drone Bay | -5/Zhirov | Free Exp. Heat Sink | -5/Zhirov | Free Exp. Optical Array | -5/Zhirov | Free Imp. Arc Thrower | -5/Zhirov | Free Robot Schematics ------------------ O-24 Administrator | -7/Data Miner | Free G-50 Soldier | -7/Data Miner | Free M-22 Extractor | -7/Data Miner | Free H-66 Slayer | -7/Data Miner | Free L-41 Fighter | -7/Data Miner | Free Fabricated ------------ Nothing Alien Tech Used ----------------- Integrated Reactor Achievements -------------- None Challenges ------------ None Game ------ Seed SapperBoreNullifier Manual? 0 Play Time 03:35:00 Cumulative 595.0 hours Start 2022.03.12 @ 15:16:23 End 2022.03.12 @ 21:22:14 Sessions 3 Manual Loads 0 Difficulty Rogue Special Mode None Game No. 144 Rogue 113 Adventurer 31 Explorer 0 Win Type 0 Total 29 Types 24/0/2/3/0/0/0/0/0 Lore% 74 Gallery% 82 Achievement% 66 Wizard Run 0 Options --------- ASCII 0 Keyboard 0 Movement Arrows Keybinds 0 Fullscreen 1 Font 20/Terminus Map View 66x50 Tactical HUD 1 Map Filters NONE Filters NONE Steam 1 RUN: 41b4dd18-3c2e-4029-a131-be7000571999